fUST/lending_fUST_20240201
["ID","MTS","AMOUNT","RATE_DAILY","PERIOD"]
[313129038,1706784641589,-500.0,0.00021335,2]
[313129039,1706784641598,-500.0,0.00021335,2]
[313129040,1706784641607,-500.0,0.00021335,2]
[313129041,1706784641615,-500.0,0.00021335,2]
[313129042,1706784641624,-500.0,0.00021335,2]
[313129043,1706784641633,-500.0,0.00021335,2]
[313129044,1706784641641,-500.0,0.00021335,2]
[313129045,1706784641651,-500.0,0.00021335,2]
[313129046,1706784641660,-500.0,0.00021335,2]
[313129047,1706784641669,-500.0,0.00021335,2]
[313129048,1706784641678,-500.0,0.00021335,2]
[313129049,1706784641687,-500.0,0.00021335,2]
[313129050,1706784641696,-500.0,0.00021335,2]
[313129051,1706784641704,-500.0,0.00021335,2]
[313129052,1706784641713,-500.0,0.00021335,2]
[313129053,1706784641722,-500.0,0.00021335,2]
[313129054,1706784641731,-544.77609658,0.00021335,2]
[313129055,1706784641740,-500.0,0.00021335,2]
[313129056,1706784641749,-500.0,0.00021335,2]
[313129057,1706784641758,-500.0,0.00021335,2]
[313129058,1706784641766,-500.0,0.00021335,2]
[313129059,1706784641775,-4414.17031738,0.00021336,2]
[313129060,1706784641784,-16738.66465278,0.00021336,2]
[313129061,1706784641793,-50000.0,0.00021336,2]
[313129062,1706784641802,-50000.0,0.00021336,2]
[313129063,1706784641811,-5000.0,0.00021336,2]
[313129064,1706784641820,-41245.3678204,0.00021336,2]
[313129065,1706784641829,-5000.0,0.00021336,2]
[313129066,1706784641838,-9647.88052658,0.00021336,2]
[313129067,1706784641847,-5000.0,0.00021336,2]
[313129068,1706784641856,-482.39402632,0.00021336,2]
[313129069,1706784641866,-5000.0,0.00021336,2]
[313129070,1706784641876,-5000.0,0.00021336,2]
[313129071,1706784641886,-5000.0,0.00021336,2]
[313129072,1706784641895,-27622.82200409,0.00021336,2]
[313129073,1706784641906,-500.0,0.00021369,2]
[313129074,1706784641915,-500.0,0.00021369,2]
[313129075,1706784641924,-722.64,0.00021369,2]
[313129076,1706784641934,-500.0,0.00021369,2]
[313129077,1706784641943,-500.0,0.00021369,2]
[313129078,1706784641952,-500.0,0.00021369,2]
[313129079,1706784641961,-500.0,0.00021369,2]
[313129080,1706784641970,-1180.97,0.00021369,2]
[313129081,1706784641980,-622.00327629,0.00021395,2]
[313129082,1706784641989,-500.0,0.00021546,2]
[313129083,1706784641998,-550.66788078,0.00021583,2]
[313129084,1706784642007,-151.0,0.00021628,2]
[313129085,1706784642016,-500.0,0.00021643,2]
[313129086,1706784642025,-500.0,0.00021643,2]
[313129087,1706784642035,-722.64,0.00021643,2]
[313129088,1706784642043,-500.0,0.00021643,2]
[313129089,1706784642053,-500.0,0.00021643,2]
[313129090,1706784642062,-500.0,0.00021643,2]
[313129091,1706784642071,-500.0,0.00021643,2]
[313129092,1706784642081,-1180.97,0.00021643,2]
[313129093,1706784642090,-500.0,0.0002182,2]
[313129094,1706784642099,-500.0,0.00021917,2]
[313129095,1706784642108,-500.0,0.00021917,2]
[313129096,1706784642118,-722.64,0.00021917,2]
[313129097,1706784642128,-500.0,0.00021917,2]
[313129098,1706784642137,-500.0,0.00021917,2]
[313129099,1706784642146,-500.0,0.00021917,2]
[313129100,1706784642159,-500.0,0.00021917,2]
[313129101,1706784642171,-1180.97,0.00021917,2]
[313129102,1706784642180,-166.666666,0.00021918,2]
[313129103,1706784642189,-2037.9288444,0.00022,2]
[313129104,1706784642198,-293.96652096,0.00022,4]
[313129105,1706784642207,-326.04786116,0.00022,2]
[313129106,1706784642217,-3975.94482734,0.00022,2]
[313129107,1706784642226,-426.74292046,0.00022,2]
[313129108,1706784642236,-3000.0,0.00022,2]
[313129109,1706784642246,-500.0,0.00022094,2]
[313129110,1706784642256,-500.0,0.00022191,2]
[313129111,1706784642265,-500.0,0.00022191,2]
[313129112,1706784642276,-722.64,0.00022191,2]
[313129113,1706784642285,-500.0,0.00022191,2]
[313129114,1706784642295,-500.0,0.00022191,2]
[313129115,1706784642305,-500.0,0.00022191,2]
[313129116,1706784642315,-500.0,0.00022191,2]
[313129117,1706784642324,-1180.97,0.00022191,2]
[313129118,1706784642333,-2180.32710182,0.000222,2]
[313129119,1706784642343,-155.2989749,0.00022268,2]
[313129120,1706784642352,-500.0,0.00022368,2]
[313129121,1706784642361,-166.666666,0.00022431,2]
[313129122,1706784642371,-620.10016381,0.00022465,2]
[313129123,1706784642380,-500.0,0.00022465,2]
[313129124,1706784642389,-500.0,0.00022465,2]
[313129125,1706784642398,-722.64,0.00022465,2]
[313129126,1706784642408,-500.0,0.00022465,2]
[313129127,1706784642417,-500.0,0.00022465,2]
[313129128,1706784642427,-348.59318522,0.00022465,2]
[313129129,1706784642436,-500.0,0.00022465,2]
[313129130,1706784642445,-1180.97,0.00022465,2]
[313129131,1706784642453,-150.672,0.00022596,2]
[313129132,1706784642462,-500.0,0.00022642,2]
[313129133,1706784642470,-500.0,0.00022739,2]
[313129134,1706784642479,-500.0,0.00022739,2]
[313129136,1706784642488,-722.64,0.00022739,2]
[313129137,1706784642497,-465.58934236,0.00022739,2]
[313129138,1706784642506,-500.0,0.00022739,2]
[313129139,1706784642515,-500.0,0.00022739,2]
[313129140,1706784642524,-1180.97,0.00022739,2]
[313129141,1706784642533,-306.0,0.0002274,2]
[313129142,1706784642543,-307.4236453,0.0002274,2]
[313129143,1706784642552,-310.5348743,0.0002274,2]
[313129144,1706784642561,-151.0,0.00022772,2]
[313129145,1706784642570,-484.24693655,0.000228,3]
[313129146,1706784642582,-500.0,0.00022916,2]
[313129147,1706784642591,-166.666666,0.00022944,2]
[313129148,1706784642601,-14111.21170784,0.00022999,2]
[313129149,1706784642610,-19111.12484416,0.00023,2]
[313129150,1706784642619,-2421.67273805,0.00023,2]
[313129152,1706784642628,-500.0,0.00023013,2]
[313129153,1706784642638,-500.0,0.00023013,2]
[313129154,1706784642647,-722.64,0.00023013,2]
[313129155,1706784642657,-500.0,0.00023013,2]
[313129156,1706784642666,-500.0,0.00023013,2]
[313129157,1706784642675,-1180.97,0.00023013,2]
[313129158,1706784642683,-305.30157776,0.00023287,2]
[313129159,1706784642692,-500.0,0.00023287,2]
[313129160,1706784642701,-722.64,0.00023287,2]
[313129161,1706784642710,-500.0,0.00023287,2]
[313129162,1706784642718,-500.0,0.00023287,2]
[313129163,1706784642727,-1180.97,0.00023287,2]
[313129164,1706784642736,-166.666666,0.00023456,2]
[313129165,1706784642745,-500.0,0.00023561,2]
[313129166,1706784642754,-722.64,0.00023561,2]
[313129167,1706784642763,-500.0,0.00023561,2]
[313129168,1706784642772,-500.0,0.00023561,2]
[313129169,1706784642781,-1180.97,0.00023561,2]
[313129170,1706784642790,-620.00500819,0.00023588,2]
[313129171,1706784642799,-5000.0,0.00023638,2]
[313129172,1706784642808,-500.0,0.00023835,2]
[313129173,1706784642817,-722.64,0.00023835,2]
[313129174,1706784642826,-500.0,0.00023835,2]
[313129175,1706784642835,-500.0,0.00023835,2]
[313129176,1706784642844,-1180.97,0.00023835,2]
[313129177,1706784642853,-356.13405953,0.000239,2]
[313129178,1706784642861,-151.0,0.00023915,2]
[313129179,1706784642869,-166.666666,0.00023969,2]
[313129180,1706784642878,-2500.0,0.00024,2]
[313129181,1706784642887,-500.0,0.00024109,2]
[313129182,1706784642896,-722.64,0.00024109,2]
[313129183,1706784642906,-500.0,0.00024109,2]
[313129185,1706784642916,-374.59,0.00024109,2]
[313129186,1706784642925,-1180.97,0.00024109,2]
[313129187,1706784642934,-500.0,0.00024383,2]
[313129188,1706784642942,-722.64,0.00024383,2]
[313129189,1706784642952,-500.0,0.00024383,2]
[313129190,1706784642961,-1180.97,0.00024383,2]
[313129191,1706784642970,-156.5099535,0.00024384,2]
[313129193,1706784642980,-153.0,0.00024384,2]
[313129194,1706784642989,-153.0,0.00024384,2]
[313129195,1706784642998,-166.666666,0.00024482,2]
[313129196,1706784643007,-500.0,0.00024657,2]
[313129197,1706784643017,-722.64,0.00024657,2]
[313129198,1706784643027,-500.0,0.00024657,2]
[313129199,1706784643036,-1180.97,0.00024657,2]
[313129200,1706784643045,-280.0,0.00024658,2]
[313129201,1706784643054,-577.0,0.000247,2]
[313129202,1706784643064,-5000.0,0.00024742,2]
[313129203,1706784643073,-5000.0,0.00024742,2]
[313129204,1706784643082,-5000.0,0.00024742,2]
[313129205,1706784643091,-5000.0,0.00024742,2]
[313129206,1706784643101,-620.00025041,0.00024768,2]
[313129207,1706784643110,-155.84248261,0.00024796,2]
[313129208,1706784643119,-205.98932295,0.00024796,2]
[313129209,1706784643128,-170.80139394,0.00024797,2]
[313129210,1706784643138,-278.93170996,0.00024798,2]
[313129211,1706784643147,-156.29035891,0.00024798,2]
[313129212,1706784643157,-1821.60364567,0.00024798,2]
[313129213,1706784643168,-1590.42438878,0.00024896,2]
[313129214,1706784643178,-160.09709862,0.00024897,2]
[313129215,1706784643187,-272.87948714,0.00024898,2]
[313129216,1706784643195,-5294.26827455,0.00024898,2]
[313129217,1706784643205,-1248.30683045,0.00024898,2]
[313129218,1706784643214,-200.75963459,0.00024898,2]
[313129219,1706784643223,-4021.82810221,0.00024899,2]
[313129220,1706784643233,-214.95765122,0.00024899,2]
[313129221,1706784643243,-106621.52063974,0.000249,2]
[313129222,1706784643382,-335.32417151,0.0001999,3]
[313129223,1706784643393,-1772.66856104,0.0001999,3]
[313129224,1706784643405,-3000.0,0.0001999,3]
[313129225,1706784643417,-3323.22726745,0.0001999,3]
[313129226,1706784643426,-14447.87396694,0.000249,2]
[313129227,1706784643579,-500.0,0.00019178,2]
[313129228,1706784643588,-4039.92297684,0.00021336,2]
[313129240,1706784763895,160.0,0.00016,2]
[313129241,1706784807967,1650.69999335,0.00016,2]
[313129242,1706784810646,236.09951915,0.00016,2]
[313129243,1706784810762,883.44272244,0.00016,2]
[313129244,1706784821973,1623.78199341,0.00016,2]
[313129245,1706784826770,490.80151247,0.00016,2]
[313129246,1706784828665,224.61070534,0.00016,2]
[313129247,1706784844789,490.80151247,0.00016,2]
[313129249,1706784862771,255.707588,0.00016,2]
[313129250,1706784878770,255.707588,0.00016,2]
[313129251,1706784896799,255.707588,0.00016,2]
[313129252,1706784914772,255.707588,0.00016,2]
[313129253,1706784932881,255.707588,0.00016,2]
[313129255,1706784950777,255.707588,0.00016,2]
[313129256,1706784966785,255.707588,0.00016,2]
[313129257,1706784984785,255.707588,0.00016,2]
[313129258,1706784992604,1150.51184569,0.00016,5]
[313129259,1706784998778,255.707588,0.00016,2]
[313129261,1706785014799,255.707588,0.00016,2]
[313129262,1706785032791,327.64999671,0.00016,2]
[313129358,1706785832211,-214.536546,0.00017202,2]
[313129359,1706785832221,-155.01240099,0.00017289,2]
[313129360,1706785832230,-720.8403274,0.0001729,2]
[313129361,1706785832239,-12004.95702916,0.00017774,3]
[313129362,1706785832247,-1857.66500198,0.00017778,2]
[313129363,1706785832257,-24900.0,0.00017779,2]
[313129364,1706785832266,-15062.65234332,0.00018073,2]
[313129365,1706785832277,-1028.78827764,0.00018073,2]
[313129434,1706785841370,-2453.55469718,0.00017777,3]
[313129435,1706785841384,-9551.40233198,0.00017777,3]
[313129436,1706785841395,-2888.07837051,0.00018073,2]
[313129437,1706785841410,-6748.42699943,0.00018073,2]
[313129438,1706785841421,-10.99542511,0.00019178,2]
[313129439,1706785841434,-489.00457489,0.00019178,2]
[313129440,1706785841445,-500.0,0.00019178,2]
[313129441,1706785841455,-500.0,0.00019178,2]
[313129443,1706785841466,-2116.49478037,0.00019423,3]
[313129548,1706787032419,-1027.29701447,0.000189,2]
[313129549,1706787032428,-360.87095662,0.0002,2]
[313129550,1706787032438,-581.32048295,0.00020697,2]
[313129573,1706787038601,-98.69255494,0.00020697,2]
[313129574,1706787038610,-155.57854716,0.00020698,2]
[313129575,1706787038619,-164.20370994,0.00021234,2]
[313129577,1706787038628,-410.84289877,0.00021334,2]
[313129625,1706787044000,-231.06485427,0.00019423,2]
[313129626,1706787044009,-17242.8686925,0.00021334,2]
[313129627,1706787044021,-2346.28840873,0.00021334,2]
[313129628,1706787044030,-2045.36009541,0.00021334,2]
[313129629,1706787044039,-623.90198777,0.00021334,2]
[313129630,1706787044048,-651.40188958,0.00021334,2]
[313129631,1706787044056,-471.67059492,0.00021334,2]
[313129632,1706787044065,-1413.1774656,0.00021334,2]
[313129633,1706787044076,-360.12577253,0.00021334,2]
[313129704,1706788238700,-979.58945662,0.00019227,2]
[313129705,1706788238710,-1962.56662251,0.00019228,2]
[313129706,1706788238720,-931.67870993,0.00019234,2]
[313129762,1706788244850,-1520.98315607,0.00019234,2]
[313129765,1706788244860,-8079.1003251,0.00019985,2]
[313129767,1706788244869,-240.58063775,0.00020034,2]
[313129769,1706788244878,-169.636899,0.00020035,2]
[313129771,1706788244887,-164.20370993,0.00021233,2]
[313129773,1706788244896,-169.93278219,0.00021234,2]
[313129775,1706788244905,-5740.54,0.00021323,3]
[313129776,1706788244914,-7086.49697329,0.00021324,3]
[313129903,1706789433129,-164.20370993,0.00019024,2]
[313129905,1706789433139,-378.37774836,0.00019119,2]
[313129907,1706789433148,-1080.31479028,0.00019119,2]
[313129909,1706789433157,-1080.31479028,0.00019119,2]
[313129911,1706789433168,-1080.31479028,0.00019119,2]
[313129913,1706789433188,-1080.31479028,0.00019119,2]
[313129915,1706789433208,-1080.31479028,0.00019119,2]
[313129917,1706789433230,-1080.31479028,0.00019119,2]
[313129919,1706789433253,-46422.31122297,0.0001912,2]
[313130059,1706789438744,-3468.63126241,0.0001912,2]
[313130061,1706789438754,-979.58945662,0.00019124,2]
[313130063,1706789438763,-1654.42290425,0.00019127,2]
[313130065,1706789438772,-500.0,0.00019178,2]
[313130067,1706789438781,-500.0,0.00019178,2]
[313130069,1706789438791,-500.0,0.00019178,2]
[313130071,1706789438800,-1635.10791067,0.00019224,2]
[313130073,1706789438809,-500.0,0.00019452,2]
[313130075,1706789438818,-500.0,0.00019452,2]
[313130077,1706789438828,-500.0,0.00019452,2]
[313130079,1706789438837,-500.0,0.00019726,2]
[313130081,1706789438846,-545.38,0.00019726,2]
[313130083,1706789438856,-500.0,0.00019726,2]
[313130085,1706789438865,-168.338537,0.00019996,2]
[313130087,1706789438874,-73.89438172,0.0002,2]
[313130090,1706789438886,-426.10561828,0.0002,2]
[313130092,1706789438896,-200.48386479,0.0002,2]
[313130094,1706789438906,-500.0,0.0002,2]
[313130096,1706789438915,-404.838942,0.00020273,2]
[313130098,1706789438925,-500.0,0.00020273,2]
[313130100,1706789438934,-1949.0,0.000204,2]
[313130102,1706789438944,-500.0,0.00020547,2]
[313130104,1706789438953,-234.67266179,0.00020821,2]
[313130106,1706789438965,-265.32733821,0.00020821,2]
[313130108,1706789438975,-500.0,0.00021095,2]
[313130110,1706789438984,-169.93278219,0.00021131,2]
[313130113,1706789438995,-500.0,0.00021231,2]
[313130115,1706789439005,-500.0,0.00021231,2]
[313130117,1706789439013,-233.62304883,0.00021231,2]
[313131021,1706789448314,-421.1,0.00021231,2]
[313131100,1706789569296,1000.0,0.000189,2]
[313131115,1706789700350,-1775.26466003,0.00018893,2]
[313131116,1706789700384,-979.58945662,0.00018894,2]
[313131117,1706789700419,-5218.09776125,0.00018894,2]
[313131118,1706789700454,-562.84400574,0.00018896,2]
[313131119,1706789700607,-9715.18323164,0.00018897,2]
[313131120,1706789700642,-162.36983032,0.000189,2]
[313131131,1706790170941,774.91322021,0.000189,2]
[313131132,1706790201327,39285.9134568,0.00018516,2]
[313131163,1706790631958,-517.47078454,0.00019174,2]
[313131164,1706790631968,-458.52623537,0.0001923,2]
[313131165,1706790631979,-168.281817,0.00019305,2]
[313131166,1706790631989,-1846.91074059,0.0001961,2]
[313131230,1706790640325,-658.13526669,0.0001961,2]
[313131233,1706790640335,-309.29107459,0.0001961,2]
[313131236,1706790640344,-381.96379396,0.00019611,2]
[313131237,1706790640353,-12611.38648692,0.00019611,2]
[313131239,1706790640362,-297.83181427,0.00021131,2]
[313131242,1706790640371,-155.01550155,0.0002123,2]
[313131245,1706790640380,-20000.0,0.00021231,2]
[313131246,1706790640389,-300.0,0.00021231,2]
[313131248,1706790640398,-2088.24989888,0.00021231,2]
[313131250,1706790640407,-1829.31848174,0.00021231,2]
[313131251,1706790640416,-503.39976067,0.00021231,2]
[313131253,1706790640425,-6138.13119635,0.00021231,2]
[313131254,1706790640434,-504.99545555,0.00021232,2]
[313131255,1706790640443,-14089.49346139,0.00021234,2]
[313131256,1706790640452,-258.7487713,0.00021234,2]
[313131257,1706790640461,-998.8149,0.000213,2]
[313131258,1706790640470,-197.519777,0.000213,2]
[313131259,1706790640481,-16135.43,0.00021324,3]
[313131260,1706790640490,-563.94261902,0.00021332,2]
[313131261,1706790640500,-623.07448613,0.00021332,2]
[313131262,1706790640509,-1012.27629002,0.00021334,2]
[313131263,1706790640519,-1111.36041845,0.00021334,2]
[313131264,1706790640529,-155.01395126,0.00021334,2]
[313131265,1706790640538,-3396.51812022,0.00021334,2]
[313131266,1706790640547,-2106.9014739,0.00021334,2]
[313131267,1706790640557,-303.83245252,0.00021335,2]
[313131268,1706790640567,-228.95392921,0.00021335,2]
[313131269,1706790640576,-960.07702316,0.00021336,2]
[313131270,1706790640586,-1771.1328817,0.00021446,2]
[313131271,1706790640596,-688.96127348,0.00021447,2]
[313131272,1706790640606,-188.63044772,0.00021447,2]
[313131273,1706790640615,-3884.70779132,0.00021447,2]
[313131274,1706790640624,-436.08047283,0.00021448,2]
[313131275,1706790640634,-14121.68993314,0.00021448,2]
[313131276,1706790640643,-2040.50242111,0.00021448,2]
[313131277,1706790640653,-15799.05808314,0.00021449,2]
[313131278,1706790640662,-3768.02908758,0.0002145,2]
[313131279,1706790640671,-15023.27047476,0.0002145,2]
[313131280,1706790640680,-5000.0,0.0002145,2]
[313131281,1706790640690,-3889.51826255,0.0002145,2]
[313131282,1706790640699,-1891.38593939,0.00021458,2]
[313131283,1706790640708,-5000.0,0.00021469,2]
[313131284,1706790640718,-35915.23377735,0.00021474,2]
[313131285,1706790640727,-5000.0,0.00021477,2]
[313131286,1706790640738,-500.0,0.00021917,2]
[313131287,1706790640748,-500.0,0.00021917,2]
[313131288,1706790640757,-504.61789593,0.00021917,2]
[313131289,1706790640767,-292.63524484,0.00021917,2]
[313131290,1706790640777,-512.06570693,0.00021917,2]
[313131291,1706790640787,-444.41820284,0.00021917,2]
[313131292,1706790640800,-55.58179716,0.00021917,2]
[313131293,1706790640809,-500.0,0.00021917,2]
[313131294,1706790640818,-437.05820284,0.00021917,2]
[313131295,1706790640830,-62.94179716,0.00021917,2]
[313131296,1706790640839,-187.62398123,0.00021917,2]
[313131297,1706790640848,-500.0,0.00021917,2]
[313131298,1706790640858,-500.0,0.00021917,2]
[313131299,1706790640867,-500.0,0.00021917,2]
[313131300,1706790640876,-500.0,0.00021917,2]
[313131301,1706790640887,-500.0,0.00021917,2]
[313131302,1706790640896,-500.0,0.00021917,2]
[313131303,1706790640905,-500.0,0.00021917,2]
[313131304,1706790640914,-500.0,0.00021917,2]
[313131305,1706790640924,-290.43422161,0.00021917,2]
[313131306,1706790640936,-209.56577839,0.00021917,2]
[313131307,1706790640945,-502.79969649,0.00021917,2]
[313131308,1706790640955,-287.01097512,0.00021917,2]
[313131309,1706790640972,-212.98902488,0.00021917,2]
[313131310,1706790640983,-545.4807662,0.00021917,2]
[313131311,1706790641087,-500.0,0.00021917,2]
[313131313,1706790641097,-500.0,0.00021917,2]
[313131314,1706790641106,-150.97208293,0.00021917,2]
[313131315,1706790641117,-500.0,0.00021917,2]
[313131316,1706790641126,-500.18299055,0.00021917,2]
[313131317,1706790641136,-500.0,0.00021917,2]
[313131318,1706790641145,-500.0,0.00021917,2]
[313131319,1706790641154,-500.0,0.00021917,2]
[313131320,1706790641164,-500.0,0.00021917,2]
[313131321,1706790641173,-500.0,0.00021917,2]
[313131322,1706790641182,-500.0,0.00021917,2]
[313131323,1706790641192,-500.0,0.00021917,2]
[313131324,1706790641201,-500.0,0.00021917,2]
[313131326,1706790641211,-500.0,0.00021917,2]
[313131328,1706790641220,-500.0,0.00021917,2]
[313131329,1706790641231,-506.59111545,0.00021917,2]
[313131330,1706790641240,-500.0,0.00021917,2]
[313131331,1706790641250,-500.0,0.00021917,2]
[313131332,1706790641259,-280.35401999,0.00021917,2]
[313131334,1706790641325,-219.64598001,0.00021917,2]
[313131336,1706790641335,-83.22112869,0.00021917,2]
[313131337,1706790641346,-1127.42887131,0.00021917,2]
[313131338,1706790641355,-228.96379475,0.00021917,2]
[313131339,1706790641366,-188.16246761,0.00021917,2]
[313131340,1706790641375,-166.666666,0.00021918,2]
[313131341,1706790641384,-2037.9288444,0.00022,2]
[313131342,1706790641393,-326.04786116,0.00022,2]
[313131343,1706790641402,-543.57279017,0.00022,2]
[313131380,1706790644989,-2004.56534882,0.00022,2]
[313131381,1706790645002,-1427.80668835,0.00022,2]
[313131382,1706790645012,-426.74292046,0.00022,2]
[313131383,1706790645021,-258.74877128,0.00022125,2]
[313131384,1706790645031,-500.0,0.00022191,2]
[313131385,1706790645041,-500.0,0.00022191,2]
[313131386,1706790645050,-500.0,0.00022191,2]
[313131387,1706790645060,-146.7104802,0.00022191,2]
[313131388,1706790645071,-162.1895198,0.00022191,2]
[313131389,1706790645081,-500.0,0.00022191,2]
[313131390,1706790645090,-500.0,0.00022191,2]
[313131391,1706790645099,-500.0,0.00022191,2]
[313131392,1706790645109,-500.0,0.00022191,2]
[313131393,1706790645119,-500.0,0.00022191,2]
[313131394,1706790645128,-392.29186839,0.00022191,2]
[313131431,1706790646285,-110.51603193,0.00022191,2]
[313131433,1706790646295,-577.98,0.00022191,2]
[313131435,1706790646305,-500.0,0.00022191,2]
[313131436,1706790646315,-500.0,0.00022191,2]
[313131437,1706790646324,-500.0,0.00022191,2]
[313131439,1706790646333,-500.0,0.00022191,2]
[313131441,1706790646343,-500.0,0.00022191,2]
[313131443,1706790646352,-500.0,0.00022191,2]
[313131445,1706790646361,-528.09714583,0.00022191,2]
[313131447,1706790646370,-505.08531389,0.00022191,2]
[313131449,1706790646379,-500.0,0.00022191,2]
[313131450,1706790646389,-642.83,0.00022191,2]
[313131451,1706790646399,-1210.65,0.00022191,2]
[313131452,1706790646409,-789.0,0.000222,2]
[313131453,1706790646419,-2505.0,0.00022255,2]
[313131454,1706790646428,-620.00001252,0.00022297,2]
[313131455,1706790646438,-166.666666,0.00022431,2]
[313131456,1706790646447,-2264.26431622,0.00022446,3]
[313131556,1706791838238,-300.1600001,0.00019818,2]
[313131562,1706791838301,-343.05547164,0.00019818,2]
[313131564,1706791838311,-155.01550155,0.0002,2]
[313131567,1706791838321,-9206.08902681,0.00020591,2]
[313131608,1706791841465,-2.68307799,0.00020591,2]
[313131610,1706791841475,-170.39695,0.00020814,2]
[313131612,1706791841484,-366.17678554,0.0002151,2]
[313131615,1706791841495,-2920.90104178,0.0002151,2]
[313131616,1706791841507,-8257.62450999,0.0002151,2]
[313131617,1706791841517,-1112.88261819,0.00021516,2]
[313131618,1706791841526,-249.75282539,0.00021523,2]
[313131619,1706791841539,-2040.93366686,0.00021523,2]
[313131620,1706791841548,-11.32007809,0.0002153,2]
[313131621,1706791841559,-573.53877,0.0002153,2]
[313131647,1706791844057,-994.80363155,0.0002153,2]
[313131648,1706791844067,-3523.51695926,0.00021917,2]
[313131694,1706793032297,-170.39695,0.0001962,2]
[313131695,1706793032308,-168.281817,0.00019686,2]
[313131696,1706793032319,-158.95416117,0.00019717,2]
[313131697,1706793032330,-643.86894249,0.00019817,2]
[313131698,1706793032341,-272.593128,0.00019858,2]
[313131699,1706793032352,-155.00930056,0.0002,2]
[313131700,1706793032362,-985.58381087,0.0002049,2]
[313131701,1706793032375,-757.74979568,0.0002049,2]
[313131702,1706793032386,-1330.20818959,0.00020491,2]
[313131703,1706793032399,-724.96795772,0.00020491,2]
[313131704,1706793032409,-414.91252285,0.00020591,2]
[313131726,1706793038424,-1878.35305354,0.00020591,2]
[313131728,1706793038434,-1650.19411677,0.00020591,2]
[313131730,1706793038444,-158.95416115,0.00020767,2]
[313131732,1706793038454,-5000.0,0.0002155,2]
[313131734,1706793038463,-5000.0,0.00021561,2]
[313131736,1706793038473,-8324.57013321,0.00021569,2]
[313131738,1706793038482,-5211.57042916,0.00021581,2]
[313131740,1706793038492,-158.95416115,0.00021817,2]
[313131742,1706793038502,-155.2492628,0.00021899,2]
[313131745,1706793038513,-2088.24989888,0.00021917,2]
[313131747,1706793038523,-300.0,0.00021917,2]
[313131749,1706793038532,-3197.9663533,0.00021917,2]
[313131752,1706793038542,-1829.31848174,0.00021917,2]
[313131754,1706793038552,-500.0,0.00021917,2]
[313131756,1706793038562,-166.70098911,0.00021917,2]
[313131758,1706793038572,-500.0,0.00021917,2]
[313131760,1706793038582,-500.0,0.00021917,2]
[313131762,1706793038592,-500.0,0.00021917,2]
[313131765,1706793038603,-266.37695117,0.00021917,2]
[313131767,1706793038612,-500.0,0.00021917,2]
[313131769,1706793038623,-500.0,0.00021917,2]
[313131771,1706793038632,-500.0,0.00021917,2]
[313131773,1706793038642,-500.0,0.00021917,2]
[313131775,1706793038652,-500.0,0.00021917,2]
[313131777,1706793038662,-500.0,0.00021917,2]
[313131779,1706793038672,-189.61402632,0.00021917,2]
[313131781,1706793038681,-500.0,0.00021917,2]
[313131783,1706793038691,-500.0,0.00021917,2]
[313131785,1706793038702,-195.13,0.00021917,2]
[313131801,1706793038814,-1109.76,0.00021917,2]
[313131803,1706793038854,-166.666666,0.00021918,2]
[313131805,1706793038863,-199.6652776,0.00021918,2]
[313131807,1706793038872,-296.12487484,0.00021999,2]
[313131809,1706793038882,-500.0,0.00021999,2]
[313131811,1706793038891,-2037.9288444,0.00022,2]
[313131813,1706793038900,-326.04786116,0.00022186,2]
[313131815,1706793038909,-426.74292046,0.00022186,2]
[313131817,1706793038919,-3301.79203715,0.00022187,2]
[313132111,1706793041646,-674.15279019,0.00022187,2]
[313132113,1706793041655,-1073.17911962,0.00022188,2]